bitfinex-derivatives/quotes_BTCF0:USTF0_20250709
["timestamp","ask_amount","ask_price","bid_price","bid_amount"]
[1752074826699,0.627435,109070.0,109060.0,0.96010648]
[1752074826901,0.62745929,109070.0,109060.0,0.62606428]
[1752074827300,0.62745929,109070.0,109060.0,0.64218428]
[1752074827602,0.62745929,109070.0,109060.0,0.64318428]
[1752074829197,0.12675606,109080.0,109060.0,0.64318428]
[1752074829392,1.33930048,109110.0,109090.0,0.0458265]
[1752074829592,1.5036363,109110.0,109100.0,0.9048931]
[1752074829902,1.82158279,109110.0,109100.0,0.9048931]
[1752074830090,1.84594279,109110.0,109100.0,0.7216]
[1752074830292,0.1832931,109100.0,109090.0,0.5441082]
[1752074830495,0.58202959,109100.0,109090.0,0.5441082]
[1752074831200,0.08079,109100.0,109090.0,0.86205469]
[1752074831501,0.08079,109100.0,109090.0,0.89151582]
[1752074831699,0.08079,109100.0,109090.0,0.5441082]
[1752074831892,0.08079,109100.0,109090.0,0.86205469]
[1752074832094,0.08079,109100.0,109090.0,0.88611469]
[1752074832399,0.08079,109100.0,109090.0,0.90124469]
[1752074832598,0.08079,109100.0,109090.0,0.90044583]
[1752074832798,0.08079,109100.0,109090.0,0.90344583]
[1752074832997,0.08079,109100.0,109090.0,0.91857583]
[1752074834007,0.08079,109100.0,109090.0,0.9276225]
[1752074834898,0.08079,109100.0,109090.0,0.91857583]
[1752074836303,0.08079,109100.0,109090.0,0.92786414]
[1752074836802,0.2640831,109100.0,109090.0,0.92786414]
[1752074837006,0.2640831,109100.0,109090.0,0.91857583]
[1752074837306,0.08079,109100.0,109090.0,0.91857583]
[1752074837698,0.08079,109100.0,109090.0,0.94927583]
[1752074837895,0.08079,109100.0,109090.0,0.98977948]
[1752074838095,0.0327,109100.0,109090.0,0.98977948]
[1752074838407,0.2159931,109100.0,109090.0,0.98977948]
[1752074838603,0.0327,109100.0,109090.0,0.98977948]
[1752074838908,0.2159931,109100.0,109090.0,0.98077583]
[1752074839407,0.2159931,109100.0,109090.0,0.99013187]
[1752074839608,0.2159931,109100.0,109090.0,0.99013124]
[1752074840108,0.0327,109100.0,109090.0,0.99013124]
[1752074840501,1.5189677,109110.0,109090.0,0.99013124]
[1752074840808,0.69422,109110.0,109100.0,0.88609959]
[1752074841001,0.66132,109110.0,109100.0,0.9460601]
[1752074841198,0.66132,109110.0,109100.0,0.9776601]
[1752074841399,0.69409087,109110.0,109100.0,0.9776601]
[1752074841802,0.66132,109110.0,109100.0,1.05956308]
[1752074842306,0.8445963,109110.0,109100.0,1.05956308]
[1752074842609,0.8607863,109110.0,109100.0,1.05956308]
[1752074842807,0.67751,109110.0,109100.0,1.05956308]
[1752074843004,0.66132,109110.0,109100.0,1.05956308]
[1752074843608,0.8455963,109110.0,109100.0,1.05956308]
[1752074843909,0.8617863,109110.0,109100.0,1.05956308]
[1752074844110,0.8455963,109110.0,109100.0,1.05956308]
[1752074844500,0.034,109110.0,109100.0,1.05956308]
[1752074844806,0.62928,109110.0,109100.0,1.05956308]
[1752074845401,0.64547,109110.0,109100.0,1.05956308]
[1752074845601,0.62928,109110.0,109100.0,1.05956308]
[1752074845803,0.62828,109110.0,109100.0,1.05956308]
[1752074846003,0.62828,109110.0,109100.0,1.06256308]
[1752074846303,0.62828,109110.0,109100.0,0.9806591]
[1752074846507,0.64447,109110.0,109100.0,0.66271261]
[1752074846709,0.8277463,109110.0,109100.0,0.9806591]
[1752074846906,0.8911463,109110.0,109100.0,0.56142261]
[1752074847303,0.8911463,109110.0,109100.0,0.57655261]
[1752074847801,0.8911463,109110.0,109100.0,0.60061261]
[1752074849011,0.8911463,109110.0,109100.0,0.56142261]
[1752074849305,0.8911463,109110.0,109100.0,0.57655261]
[1752074849505,0.07959,109110.0,109100.0,0.8793691]
[1752074849707,0.0325,109110.0,109100.0,0.9185591]
[1752074849912,0.10418761,109120.0,109110.0,0.1832763]
[1752074850212,0.64752761,109120.0,109110.0,0.8763523]
[1752074850509,0.64752761,109120.0,109110.0,0.9375523]
[1752074851109,0.03551761,109120.0,109110.0,0.9375523]
[1752074851302,0.03551761,109120.0,109110.0,1.25549879]
[1752074851503,0.03551761,109120.0,109110.0,0.9375523]
[1752074851805,0.03651761,109120.0,109110.0,0.9375523]
[1752074852399,0.03651761,109120.0,109110.0,1.25549879]
[1752074853107,0.02032761,109120.0,109110.0,1.25549879]
[1752074853310,0.02032761,109120.0,109110.0,1.27955879]
[1752074853510,0.03651761,109120.0,109110.0,0.55840581]
[1752074853700,0.6004236,109120.0,109110.0,0.57353581]
[1752074854203,0.28247711,109120.0,109110.0,0.57353581]
[1752074854407,0.6004236,109120.0,109110.0,0.57353581]
[1752074854805,0.6247836,109120.0,109110.0,0.55840581]
[1752074855005,0.6247836,109120.0,109110.0,0.57353581]
[1752074855205,0.30683711,109120.0,109110.0,0.55840581]
[1752074855411,0.6247836,109120.0,109110.0,0.57353581]
[1752074855708,0.30683711,109120.0,109110.0,0.57353581]
[1752074855913,0.6247836,109120.0,109110.0,0.57353581]
[1752074857414,0.6247836,109120.0,109110.0,0.39025951]
[1752074857607,0.6247836,109120.0,109110.0,0.21273591]
[1752074858104,0.6247836,109120.0,109110.0,0.57353591]
[1752074858305,0.6242336,109120.0,109110.0,0.55840591]
[1752074860017,0.6242336,109120.0,109110.0,0.57419591]
[1752074860216,0.6242336,109120.0,109110.0,0.55840424]
[1752074861819,0.30628711,109120.0,109110.0,0.55840424]
[1752074862020,0.6242336,109120.0,109110.0,0.55840424]
[1752074862320,0.6242336,109120.0,109110.0,0.37512784]
[1752074862721,0.6242336,109120.0,109110.0,0.39091784]
[1752074863021,0.6242336,109120.0,109110.0,0.37512784]
[1752074863314,0.6242336,109120.0,109110.0,0.39091788]
[1752074863512,0.6242336,109120.0,109110.0,0.37512788]
[1752074863719,0.6242336,109120.0,109110.0,0.39091788]
[1752074865725,0.6242336,109120.0,109110.0,0.01432788]
[1752074866421,0.9850336,109120.0,109110.0,0.01432788]
[1752074868423,0.9850336,109120.0,109110.0,0.06864396]
[1752074870320,0.9850336,109120.0,109110.0,0.15054794]
[1752074873933,1.30298009,109120.0,109110.0,1e-08]
[1752074874120,3.00383609,109120.0,109110.0,1e-08]
[1752074874436,0.2832762,109110.0,109100.0,0.08190398]
[1752074874633,1.65178918,109110.0,109100.0,0.08190398]
[1752074874932,1.83510118,109110.0,109100.0,0.08190398]
[1752074875127,1.73510118,109110.0,109100.0,0.08190398]
[1752074875534,1.73510118,109110.0,109100.0,0.08290398]
[1752074876030,1.10698118,109110.0,109100.0,0.08290398]
[1752074876332,1.73510118,109110.0,109100.0,0.08290398]
[1752074876631,1.73510118,109110.0,109100.0,0.08490398]
[1752074876827,1.41715469,109110.0,109100.0,0.08490398]
[1752074877629,1.23384269,109110.0,109100.0,0.08490398]
[1752074878233,1.55178918,109110.0,109100.0,0.08490398]
[1752074878821,1.73510118,109110.0,109100.0,0.01797358]
[1752074879027,1.83510118,109110.0,109100.0,0.01797358]
[1752074880627,0.183293,109100.0,109090.0,0.3608]
[1752074880937,0.60583949,109100.0,109090.0,0.3608]
[1752074881328,0.1833098,109090.0,109080.0,0.47000531]
[1752074881533,1.2274028,109090.0,109080.0,0.3608]
[1752074881829,1.2274028,109090.0,109080.0,0.37659]
[1752074881830,1.2507528,109090.0,109080.0,0.37659]
[1752074882036,0.93280631,109090.0,109080.0,0.37659]
[1752074882231,1.2507528,109090.0,109080.0,0.40949]
[1752074882431,1.2507528,109090.0,109080.0,0.44229]
[1752074883234,1.2517528,109090.0,109080.0,0.44729]
[1752074884438,1.2517528,109090.0,109080.0,0.45029]
[1752074886839,1.26077392,109090.0,109080.0,0.45029]
[1752074887637,1.26077392,109090.0,109080.0,0.4345]
[1752074887933,1.26077392,109090.0,109080.0,0.0408]
[1752074889336,1.26077392,109090.0,109080.0,0.008]
[1752074889742,1.33419558,109090.0,109080.0,0.008]
[1752074895245,1.69499558,109090.0,109080.0,0.008]
[1752074898749,1.72816563,109090.0,109080.0,0.008]
[1752074899043,1.69499558,109090.0,109080.0,0.008]
[1752074900041,1.33419558,109090.0,109080.0,0.008]
[1752074901638,1.69499558,109090.0,109080.0,0.008]
[1752074907248,1.72819107,109090.0,109080.0,0.008]
[1752074907744,0.1833266,109080.0,109070.0,0.12781589]
[1752074908049,0.57440309,109080.0,109070.0,0.12781589]
[1752074908249,0.60500309,109080.0,109070.0,0.12781589]
[1752074908549,0.60500309,109080.0,109070.0,0.11271665]
[1752074909245,0.60500309,109080.0,109070.0,0.12837665]
[1752074909451,0.60500309,109080.0,109070.0,0.13237665]
[1752074909751,0.60500309,109080.0,109070.0,0.13737665]
[1752074909945,0.60600309,109080.0,109070.0,0.13737665]
[1752074914460,0.92394958,109080.0,109070.0,0.09081665]
[1752074914848,0.60600309,109080.0,109070.0,0.09081665]
[1752074915043,0.60600309,109080.0,109070.0,0.10647665]
[1752074915857,0.60600309,109080.0,109070.0,0.10347665]
[1752074916059,0.60600309,109080.0,109070.0,0.09947665]
[1752074916357,0.60600309,109080.0,109070.0,0.12977665]
[1752074920962,0.92394958,109080.0,109070.0,0.12977665]
[1752074922758,0.92394958,109080.0,109070.0,0.11411665]
[1752074922959,0.60600309,109080.0,109070.0,0.11411665]
[1752074924359,0.60600309,109080.0,109070.0,0.47491665]
[1752074925162,0.63953721,109080.0,109070.0,0.47491665]
[1752074927451,0.63953721,109080.0,109070.0,0.49049665]
[1752074928863,0.60600309,109080.0,109070.0,0.49049665]
[1752074932361,0.92394958,109080.0,109070.0,0.11411665]
[1752074932567,0.95750033,109080.0,109070.0,0.08381665]
[1752074938473,0.95750033,109080.0,109070.0,0.44461665]
[1752074938767,0.95754111,109080.0,109070.0,0.44461665]
[1752074939070,0.95754111,109080.0,109070.0,0.62796005]
[1752074939270,1.58550111,109080.0,109070.0,0.64354005]
[1752074939461,1.58550111,109080.0,109070.0,0.46019665]
[1752074939870,1.94630111,109080.0,109070.0,0.09939665]
[1752074940370,1.58550111,109080.0,109070.0,0.64353995]
[1752074940570,1.58550111,109080.0,109070.0,0.46019665]
[1752074942267,1.58550111,109080.0,109070.0,0.44461665]
[1752074945273,1.58550111,109080.0,109070.0,0.46019665]
[1752074945773,1.58550111,109080.0,109070.0,0.44461665]
[1752074951090,1.55195036,109080.0,109070.0,0.3628]
[1752074953189,1.55195036,109080.0,109070.0,0.5461434]
[1752074953190,0.85226036,109080.0,109070.0,0.5461434]
[1752074953390,1.48006036,109080.0,109070.0,0.6260134]
[1752074954291,1.50308036,109080.0,109070.0,0.44267]
[1752074955699,1.50308036,109080.0,109070.0,0.6260134]
[1752074956688,1.50308036,109080.0,109070.0,0.44267]
[1752074957384,1.53308036,109080.0,109070.0,0.44267]
[1752074957995,1.53308036,109080.0,109070.0,0.6260134]
[1752074958895,1.53308036,109080.0,109070.0,0.44267]
[1752074959796,1.53308036,109080.0,109070.0,0.6260134]
[1752074960797,1.56648998,109080.0,109070.0,0.70810363]
[1752074961596,1.56648998,109080.0,109070.0,0.52476023]
[1752074962601,1.56648998,109080.0,109070.0,0.49266023]
[1752074963595,1.56648998,109080.0,109070.0,0.44489023]
[1752074963800,1.56648998,109080.0,109070.0,0.46146023]
[1752074965199,1.56648998,109080.0,109070.0,0.64480363]
[1752074965600,1.56648998,109080.0,109070.0,0.46146023]
[1752074968200,1.56648998,109080.0,109070.0,0.37937]
[1752074968603,1.56648998,109080.0,109070.0,0.4614546]
[1752074969698,0.30275622,109080.0,109070.0,0.644798]
[1752074970001,1.58285998,109080.0,109070.0,0.677498]
[1752074970302,1.58285998,109080.0,109070.0,0.4941546]
[1752074971303,1.58285998,109080.0,109070.0,0.677498]
[1752074971605,1.58285998,109080.0,109070.0,0.4941546]
[1752074972102,1.58285998,109080.0,109070.0,0.4775846]
[1752074972296,1.58285998,109080.0,109070.0,0.4448846]
[1752074973699,1.58285998,109080.0,109070.0,0.4614546]
[1752074976202,1.54945036,109080.0,109070.0,0.37937]
[1752074978109,1.54945036,109080.0,109070.0,0.5627134]
[1752074978501,1.54945036,109080.0,109070.0,0.5927134]
[1752074978700,1.54945036,109080.0,109070.0,0.40937]
[1752074980010,1.54945036,109080.0,109070.0,0.5927134]
[1752074981210,1.54945036,109080.0,109070.0,0.49140611]
[1752074983209,1.54945036,109080.0,109070.0,0.67474951]
[1752074984109,1.54945036,109080.0,109070.0,0.40937]
[1752074985312,1.54945036,109080.0,109070.0,0.4914073]
[1752074986210,1.58286815,109080.0,109070.0,0.1006073]
[1752074986401,2.26163503,109080.0,109070.0,1e-07]
[1752074987411,1.90083503,109080.0,109070.0,1e-07]
[1752074987613,2.26163503,109080.0,109070.0,1e-07]
[1752074989314,1.90083503,109080.0,109070.0,1e-07]
[1752074990213,2.26163503,109080.0,109070.0,1e-07]
[1752074992014,1.90083503,109080.0,109070.0,1e-07]
[1752074992610,2.26163503,109080.0,109070.0,1e-07]
[1752074993614,1.90083503,109080.0,109070.0,1e-07]
[1752074994012,2.26163503,109080.0,109070.0,1e-07]
[1752074994209,1.90083503,109080.0,109070.0,1e-07]
[1752074995012,2.26163503,109080.0,109070.0,1e-07]
[1752074998423,1.94366815,109080.0,109070.0,1e-07]
[1752074998723,1.94966815,109080.0,109070.0,0.0010001]
[1752074999819,1.32206815,109080.0,109070.0,0.0010001]
[1752075000015,1.94930815,109080.0,109070.0,0.0010001]
[1752075000818,1.58850815,109080.0,109070.0,0.0010001]
[1752075001025,1.58850815,109080.0,109070.0,0.0174001]
[1752075001816,0.96126815,109080.0,109070.0,0.0174001]
[1752075002115,1.58850815,109080.0,109070.0,0.0174001]
[1752075002316,1.58850815,109080.0,109070.0,0.0010001]
[1752075002512,1.60566211,109080.0,109070.0,0.0010001]
[1752075002824,1.57224432,109080.0,109070.0,0.0010001]
[1752075003024,1.60625815,109080.0,109070.0,0.0010001]
[1752075006022,0.1833434,109070.0,109060.0,0.17220531]
[1752075006217,0.88981716,109070.0,109060.0,0.14200531]
[1752075006416,0.88981716,109070.0,109060.0,0.10920531]
[1752075006721,0.92281716,109070.0,109060.0,0.10920531]
[1752075007430,0.92381716,109070.0,109060.0,0.11020531]
[1752075007626,0.92381716,109070.0,109060.0,0.12660531]
[1752075008026,0.92481716,109070.0,109060.0,0.12660531]
[1752075008830,0.95924947,109070.0,109060.0,0.0174]
[1752075009423,0.92481716,109070.0,109060.0,0.0174]
[1752075009725,0.88697716,109070.0,109060.0,0.001]
[1752075009919,0.92644716,109070.0,109060.0,0.001]
[1752075010536,0.96087224,109070.0,109060.0,0.001]
[1752075017535,0.96087224,109070.0,109060.0,0.0327]
[1752075018839,0.92644716,109070.0,109060.0,0.0327]
[1752075020337,0.9608625,109070.0,109060.0,0.0327]
[1752075021540,0.9608625,109070.0,109060.0,0.001]
[1752075023841,0.183377,109050.0,109040.0,0.47183942]
[1752075024028,1.14487388,109050.0,109040.0,0.70420322]
[1752075024233,1.20031388,109050.0,109040.0,0.70420322]
[1752075024635,1.51828076,109050.0,109040.0,0.52080942]
[1752075024942,1.51828076,109050.0,109040.0,0.47183942]
[1752075025135,1.55714028,109050.0,109040.0,0.47183942]
[1752075025339,1.55814028,109050.0,109040.0,0.47583942]
[1752075026036,1.55814028,109050.0,109040.0,0.11503942]
[1752075026242,1.55138076,109050.0,109040.0,0.47583942]
[1752075027042,1.23357837,109050.0,109040.0,0.47583942]
[1752075027635,0.915447,109050.0,109040.0,0.47583942]
[1752075027835,1.23357837,109050.0,109040.0,0.49230942]
[1752075028140,1.24053422,109050.0,109040.0,0.52510942]
[1752075028343,1.23357837,109050.0,109040.0,0.52510942]
[1752075029442,1.23357837,109050.0,109040.0,0.41590411]
[1752075029644,1.23357837,109050.0,109040.0,0.52510942]
[1752075029843,1.23357837,109050.0,109040.0,0.41590411]
[1752075030937,1.24040717,109050.0,109040.0,0.41590411]
[1752075031845,1.23357837,109050.0,109040.0,0.41590411]
[1752075033347,1.55851878,109050.0,109040.0,0.36663411]
[1752075033742,1.24038741,109050.0,109040.0,0.36663411]
[1752075034344,1.24038741,109050.0,109040.0,0.38310411]
[1752075035045,1.23357837,109050.0,109040.0,0.38310411]
[1752075035251,1.2404983,109050.0,109040.0,0.38310411]
[1752075035947,1.55862967,109050.0,109040.0,0.49230942]
[1752075036851,1.2404983,109050.0,109040.0,0.49230942]
[1752075038652,1.23357837,109050.0,109040.0,0.49230942]
[1752075039146,0.60657837,109050.0,109040.0,0.67570322]
[1752075039344,0.51803837,109050.0,109040.0,0.67570322]
[1752075039650,1.14499837,109050.0,109040.0,0.76254322]
[1752075039850,1.14499837,109050.0,109040.0,0.73880322]
[1752075040241,1.16842837,109050.0,109040.0,0.73880322]
[1752075040442,1.14499837,109050.0,109040.0,0.73880322]
[1752075040848,1.16842837,109050.0,109040.0,0.73880322]
[1752075044858,0.826867,109050.0,109040.0,0.76254322]
[1752075045055,1.14499837,109050.0,109040.0,0.76254322]
[1752075045657,0.826867,109050.0,109040.0,1.08067459]
[1752075046056,0.826867,109050.0,109040.0,0.76254322]
[1752075046357,0.199907,109050.0,109040.0,0.76254322]
[1752075046560,0.826827,109050.0,109040.0,0.67281286]
[1752075046858,0.826827,109050.0,109040.0,1.10033004]
[1752075047052,0.826827,109050.0,109040.0,0.67281286]
[1752075047253,0.826827,109050.0,109040.0,0.99094423]
[1752075048658,0.62792,109050.0,109040.0,1.10035031]
[1752075048845,0.001,109050.0,109040.0,1.10035031]
[1752075049046,0.62792,109050.0,109040.0,0.99094423]
[1752075049257,0.62792,109050.0,109040.0,1.1003388]
[1752075049555,0.811297,109050.0,109040.0,0.99094423]
[1752075050260,0.811297,109050.0,109040.0,0.67281286]
[1752075050452,0.184377,109050.0,109040.0,1.61782423]
[1752075051164,0.001,109050.0,109040.0,1.61782423]
[1752075052072,0.001,109050.0,109040.0,1.75479365]
[1752075053869,0.51415734,109070.0,109060.0,0.1833602]
[1752075053870,0.33859327,109070.0,109060.0,0.1833602]
[1752075054075,0.33859327,109070.0,109060.0,1.02612543]
[1752075054076,0.96543327,109070.0,109060.0,1.02612543]
[1752075054372,0.98096327,109070.0,109060.0,1.08782543]
[1752075054967,0.98396327,109070.0,109060.0,1.08882543]
[1752075055169,0.93812347,109070.0,109060.0,1.08882543]
[1752075055370,0.93912347,109070.0,109060.0,1.0068002]
[1752075056075,0.93912347,109070.0,109060.0,1.0888039]
[1752075056771,1.28985484,109070.0,109060.0,1.0650639]
[1752075056971,1.31328484,109070.0,109060.0,1.0650639]
[1752075057271,1.28985484,109070.0,109060.0,1.0650639]
[1752075057574,0.22060677,109070.0,109060.0,1.40693527]
[1752075057770,0.004,109070.0,109060.0,1.34414912]
[1752075057971,1.68310303,109090.0,109080.0,0.1833266]
[1752075057972,1.5733034,109090.0,109080.0,0.1833266]
[1752075058183,2.23497378,109090.0,109080.0,0.9203266]
[1752075058472,2.2006634,109090.0,109080.0,1.01290497]
[1752075058669,1.5739034,109090.0,109080.0,1.0059666]
[1752075058875,2.2006634,109090.0,109080.0,1.0059666]
[1752075059080,2.2006634,109090.0,109080.0,1.0879415]
[1752075060773,2.2046634,109090.0,109080.0,1.0889415]
[1752075061171,2.2046634,109090.0,109080.0,1.0879415]
[1752075061368,2.2036634,109090.0,109080.0,1.0889415]
[1752075061765,2.2066634,109090.0,109080.0,1.0889415]
[1752075062477,2.2036634,109090.0,109080.0,1.0889415]
[1752075062676,2.2056634,109090.0,109080.0,1.0889415]
[1752075063670,1.5789034,109090.0,109080.0,1.0889415]
[1752075063873,0.9374634,109090.0,109080.0,1.0889415]
[1752075064178,0.9221934,109090.0,109080.0,1.40707287]
[1752075064371,0.2038397,109090.0,109080.0,1.40707287]
[1752075064573,0.8149897,109090.0,109080.0,1.40707287]
[1752075064976,0.8305197,109090.0,109080.0,1.40707287]
[1752075065472,0.8149897,109090.0,109080.0,1.40707287]
[1752075065674,0.1883097,109090.0,109080.0,1.40707287]
[1752075065874,0.8149497,109090.0,109080.0,1.40707287]
[1752075066368,0.005,109090.0,109080.0,1.40707287]
[1752075066574,0.63164,109090.0,109080.0,1.40707287]
[1752075066778,0.005,109090.0,109080.0,2.03371287]
[1752075066976,0.8557313,109100.0,109090.0,0.1833097]
[1752075067280,0.9170882,109100.0,109090.0,1.04464782]
[1752075068381,0.9210882,109100.0,109090.0,1.04564782]
[1752075068581,0.9240882,109100.0,109090.0,1.04564782]
[1752075069869,0.02253,109100.0,109090.0,1.04564782]
[1752075070082,0.2058229,109100.0,109090.0,1.04564782]
[1752075070583,0.2058229,109100.0,109090.0,1.67220782]
[1752075070780,0.1902929,109100.0,109090.0,1.63306782]
[1752075070982,0.1902929,109100.0,109090.0,1.65801782]
[1752075071176,0.1902929,109100.0,109090.0,1.33988645]
[1752075071478,0.007,109100.0,109090.0,1.65794262]
[1752075071680,0.007,109100.0,109090.0,1.57625107]
[1752075072073,0.007,109100.0,109090.0,1.68561912]
[1752075072381,0.007,109100.0,109090.0,1.57625107]
[1752075072976,0.1902929,109100.0,109090.0,1.57625107]
[1752075073481,0.1902929,109100.0,109090.0,1.65788209]
[1752075073682,0.1902929,109100.0,109090.0,1.33975072]
[1752075073879,0.1902929,109100.0,109090.0,1.65788209]
[1752075080190,0.2063829,109100.0,109090.0,1.65776209]
[1752075080387,0.2387829,109100.0,109090.0,1.65776209]
[1752075082185,0.2387829,109100.0,109090.0,0.94487209]
[1752075082384,0.55691427,109100.0,109090.0,1.25318072]
[1752075082584,0.58811427,109100.0,109090.0,1.25318072]
[1752075082985,0.58811427,109100.0,109090.0,0.62674072]
[1752075083185,0.58811427,109100.0,109090.0,1.26908072]
[1752075084096,0.61253427,109100.0,109090.0,0.64264072]
[1752075084285,0.62994163,109100.0,109090.0,0.44343102]
[1752075084487,0.62994163,109100.0,109090.0,0.001]
[1752075084789,0.1833098,109090.0,109080.0,0.38020157]
[1752075084992,1.12784117,109090.0,109080.0,0.38020157]
[1752075086097,1.12984117,109090.0,109080.0,0.38020157]
[1752075086784,1.12984117,109090.0,109080.0,0.57942807]
[1752075086989,1.12984117,109090.0,109080.0,0.56352807]
[1752075087193,1.12984117,109090.0,109080.0,0.38020157]
[1752075087484,1.20433194,109090.0,109080.0,0.38020157]
[1752075087890,1.29245194,109090.0,109080.0,0.38020157]
[1752075089391,0.97432057,109090.0,109080.0,0.38020157]
[1752075089591,1.30854194,109090.0,109080.0,0.38020157]
[1752075091400,0.68214194,109090.0,109080.0,0.38020157]
[1752075091595,1.23413117,109090.0,109080.0,0.57942817]
[1752075091801,0.8844998,109090.0,109080.0,0.72089622]
[1752075092008,0.8600798,109090.0,109080.0,0.74584622]
[1752075092201,0.8600798,109090.0,109080.0,0.77724622]
[1752075092595,1.17821117,109090.0,109080.0,0.77724622]
[1752075093601,1.17821117,109090.0,109080.0,0.66787817]
[1752075094505,1.17821117,109090.0,109080.0,0.62702817]
[1752075095005,1.20263117,109090.0,109080.0,0.64292817]
[1752075095401,1.20263117,109090.0,109080.0,0.62702817]
[1752075095601,1.20263117,109090.0,109080.0,0.64292817]
[1752075095805,1.20263117,109090.0,109080.0,0.62702817]
[1752075096003,1.52076254,109090.0,109080.0,0.3608]
[1752075096200,1.66184681,109090.0,109080.0,0.3608]
[1752075096401,1.34371544,109090.0,109080.0,0.3608]
[1752075097606,1.3437042,109090.0,109080.0,0.3608]
[1752075098400,1.30884702,109090.0,109080.0,0.3608]
[1752075101003,0.1833266,109080.0,109070.0,0.3913]
[1752075101199,0.57976797,109080.0,109070.0,0.5746434]
[1752075101513,0.60294797,109080.0,109070.0,0.5746434]
[1752075101805,0.60294797,109080.0,109070.0,0.5898534]
[1752075102010,0.60294797,109080.0,109070.0,0.5746434]
[1752075102404,0.60294797,109080.0,109070.0,0.5898534]
[1752075103207,0.8098466,109080.0,109070.0,0.6126934]
[1752075103403,0.8098466,109080.0,109070.0,0.6450934]
[1752075103612,0.8254566,109080.0,109070.0,0.6450934]
[1752075103812,0.8254566,109080.0,109070.0,0.6460934]
[1752075104313,0.8254566,109080.0,109070.0,0.96422477]
[1752075104513,0.3208128,109090.0,109080.0,0.1833266]
[1752075104714,0.9629428,109090.0,109080.0,0.6468766]
[1752075105218,0.2905917,109090.0,109080.0,0.6468766]
[1752075105419,0.8712813,109090.0,109080.0,0.96500797]
[1752075105721,0.8098423,109090.0,109080.0,0.96500797]
[1752075106125,0.8108423,109090.0,109080.0,0.96500797]
[1752075107121,0.8128423,109090.0,109080.0,0.96500797]
[1752075109223,0.8284523,109090.0,109080.0,0.6468766]
[1752075109923,0.8128423,109090.0,109080.0,0.6468766]
[1752075110224,0.8128297,109090.0,109080.0,0.6468766]
[1752075110613,0.003,109090.0,109080.0,0.96500797]
[1752075110814,0.003,109090.0,109080.0,1.07437602]
[1752075111018,0.003,109090.0,109080.0,1.39250739]
[1752075111333,0.01740736,109100.0,109090.0,0.1833098]
[1752075111620,0.01740736,109100.0,109090.0,1.70099922]
[1752075112017,0.01740736,109100.0,109090.0,1.38286785]
[1752075112018,0.20070026,109100.0,109090.0,1.38286785]
[1752075112217,0.20070026,109100.0,109090.0,1.70099922]
[1752075113221,0.20170026,109100.0,109090.0,1.70499922]
[1752075113615,0.20170026,109100.0,109090.0,1.38686785]
[1752075113816,0.20170026,109100.0,109090.0,1.70699922]
[1752075116012,0.51983163,109100.0,109090.0,1.38886785]
[1752075116212,0.55862163,109100.0,109090.0,1.2568998]
[1752075116515,1.18570163,109100.0,109090.0,0.6298198]
[1752075119222,1.18570163,109100.0,109090.0,0.3981]
[1752075119425,1.43152963,109100.0,109090.0,0.3668]
[1752075120720,1.24820163,109100.0,109090.0,0.3668]
[1752075122630,1.24820163,109100.0,109090.0,0.006]
[1752075125031,1.24820163,109100.0,109090.0,0.3668]
[1752075125724,1.24820163,109100.0,109090.0,0.006]
[1752075126837,0.93007026,109100.0,109090.0,0.3668]
[1752075127130,1.24820163,109100.0,109090.0,0.3668]
[1752075128026,0.93007026,109100.0,109090.0,0.3668]
[1752075128226,0.62112163,109100.0,109090.0,0.3668]
[1752075128426,1.24948163,109100.0,109090.0,0.3668]
[1752075129534,1.24948163,109100.0,109090.0,0.5501098]
[1752075130030,1.24948163,109100.0,109090.0,0.3668]
[1752075130232,1.24948163,109100.0,109090.0,0.38201]
[1752075130429,1.24948163,109100.0,109090.0,0.3668]
[1752075130631,1.24948163,109100.0,109090.0,0.3977]
[1752075131635,1.24948163,109100.0,109090.0,0.3668]
[1752075132135,1.24948163,109100.0,109090.0,0.5970698]
[1752075132437,1.24948163,109100.0,109090.0,0.3982]
[1752075132939,1.24948163,109100.0,109090.0,0.41376]
[1752075133136,1.24948163,109100.0,109090.0,0.006]
[1752075133632,1.24948163,109100.0,109090.0,0.3668]
[1752075139040,1.24948163,109100.0,109090.0,0.006]
[1752075139241,0.1833098,109090.0,109080.0,0.3608]
[1752075139439,0.86564254,109090.0,109080.0,0.3608]
[1752075139639,0.1833266,109080.0,109070.0,0.3912]
[1752075139940,1.51819934,109080.0,109070.0,0.40676]
[1752075140335,1.51819934,109080.0,109070.0,0.3912]
[1752075140336,1.53555098,109080.0,109070.0,0.3912]
[1752075140538,1.53555098,109080.0,109070.0,0.3608]
[1752075140744,1.56735098,109080.0,109070.0,0.3608]
[1752075140945,1.56835098,109080.0,109070.0,0.3678]
[1752075142550,1.57035098,109080.0,109070.0,0.3618]
[1752075143049,1.57035098,109080.0,109070.0,0.3628]
[1752075143742,1.57808534,109080.0,109070.0,0.3628]
[1752075143947,1.58008534,109080.0,109070.0,0.3618]
[1752075145655,1.61504856,109080.0,109070.0,0.3618]
[1752075147258,1.97584856,109080.0,109070.0,0.001]
[1752075147459,0.1833602,109060.0,109050.0,0.3608]
[1752075147662,1.46519292,109060.0,109050.0,0.3916]
[1752075147959,1.85719292,109060.0,109050.0,0.0308]
[1752075148456,1.49639292,109060.0,109050.0,0.3916]
[1752075149257,1.49739292,109060.0,109050.0,0.3926]
[1752075149756,1.17926155,109060.0,109050.0,0.3926]
[1752075150657,1.17926155,109060.0,109050.0,0.40664358]
[1752075151457,1.20384155,109060.0,109050.0,0.40664358]
[1752075152558,1.20384155,109060.0,109050.0,0.40764358]
[1752075152755,1.20384155,109060.0,109050.0,0.04684358]
[1752075152958,1.52197292,109060.0,109050.0,0.04684358]
[1752075153761,1.55337292,109060.0,109050.0,0.04684358]
[1752075155150,1.55337292,109060.0,109050.0,0.40764358]
[1752075155151,1.23524155,109060.0,109050.0,0.40764358]
[1752075155566,1.55337292,109060.0,109050.0,0.40764358]
[1752075155762,1.23524155,109060.0,109050.0,0.40764358]
[1752075156671,1.55337292,109060.0,109050.0,0.40764358]
[1752075157360,1.55337292,109060.0,109050.0,0.04684358]
[1752075157567,1.91417292,109060.0,109050.0,0.01604358]
[1752075158265,0.183377,109050.0,109040.0,0.03473411]
[1752075158562,0.89159974,109050.0,109040.0,0.03473411]
[1752075159356,0.89159974,109050.0,109040.0,0.03773411]
[1752075159658,0.255337,109050.0,109040.0,0.03773411]
[1752075159864,0.89259974,109050.0,109040.0,0.41680411]
[1752075160165,0.89259974,109050.0,109040.0,0.08670411]
[1752075162057,0.89259974,109050.0,109040.0,0.08370411]
[1752075162268,0.89259974,109050.0,109040.0,0.08470411]
[1752075163269,0.89259974,109050.0,109040.0,0.26809791]
[1752075163458,0.89259974,109050.0,109040.0,0.08470411]
[1752075163962,0.89259974,109050.0,109040.0,0.08270411]
[1752075165767,0.89259974,109050.0,109040.0,0.44350411]